[Event "Slovakia Open Piestany-A 2022"]
[Site "Piestany"]
[Date "2022.07.15"]
[Round "6.25"]
[White "Tripodi, Enzo"]
[Black "Holly, Andrej"]
[Result "0-1"]
[ECO "B20"]
[WhiteElo "2141"]
[BlackElo "2213"]
[Annotator "ChessBase"]
[PlyCount "74"]
[EventDate "2022.07.12"]
[EventType "swiss"]
[EventCountry "SVK"]
[SourceTitle "playchess.com"]
[Source "ChessBase"]
[SourceQuality "1"]
[TimeControl "40/5400+30:1800+30"]

1. e4 {[%emt 0:02:17]} c5 {[%emt 0:00:04]} 2. b3 {[%emt 0:00:12]} e5 {[%emt 0:00:58]} 3. Bb2 {[%emt 0:00:10]} Nc6 {[%emt 0:00:00]} 4. Bc4 {[%emt 0:00:15]} d6 {[%emt 0:01:44]} 5. Nc3 {[%emt 0:00:09]} g6 {[%emt 0:00:47]} 6. Nge2 {[%emt 0:01:18]} Bg7 {[%emt 0:00:57]} 7. O-O {[%emt 0:00:06]} Nge7 {[%emt 0:00:19]} 8. f4 {[%emt 0:00:21]} O-O {[%emt 0:04:18]} 9. Nd5 {[%emt 0:06:06]} a6 {[%emt 0:07:33]} 10. a4 {[%emt 0:07:16]} Rb8 {[%emt 0:01:05]} 11. Nec3 {[%emt 0:07:37]} exf4 {[%emt 0:05:44]} 12. Rxf4 {[%emt 0:06:25]} b5 {[%emt 0:01:18]} 13. axb5 {[%emt 0:00:07]} axb5 {[%emt 0:00:07]} 14. Nxe7+ {[%emt 0:02:27]} Nxe7 {[%emt 0:03:13]} 15. Be2 {[%emt 0:05:05]} Be5 {[%emt 0:01:57]} 16. Qf1 {[%emt 0:01:24]} Nc6 {[%emt 0:10:17]} 17. Bxb5 {[%emt 0:12:06]} Nd4 {[%emt 0:01:44]} 18. Bc4 {[%emt 0:05:56]} Bxf4 {[%emt 0:06:27]} 19. Qxf4 {[%emt 0:00:15]} Be6 {[%emt 0:01:08]} 20. Nd5 {[%emt 0:00:50]} Bxd5 {[%emt 0:00:40]} 21. Bxd4 {[%emt 0:00:15]} cxd4 {[%emt 0:01:22]} 22. Bxd5 {[%emt 0:00:09]} Qe7 {[%emt 0:06:40]} 23. Rf1 {[%emt 0:04:10]} Kg7 {[%emt 0:02:07]} 24. g4 {[%emt 0:07:16]} Rbc8 {[%emt 0:01:15]} 25. Bc4 {[%emt 0:08:37]} Rc5 {[%emt 0:01:41]} 26. Rf3 {[%emt 0:01:49]} h5 {[%emt 0:06:23]} 27. Rd3 {[%emt 0:03:52]} hxg4 {[%emt 0:05:47]} 28. Rxd4 {[%emt 0:00:08]} Re5 {[%emt 0:03:14]} 29. Bd3 {[%emt 0:03:04]} Rh8 {[%emt 0:05:26]} 30. Rd5 {[%emt 0:01:25]} Rxd5 {[%emt 0:01:51]} 31. exd5 {[%emt 0:00:01]} Rh5 {[%emt 0:03:02]} 32. c4 {[%emt 0:00:51]} Rh3 {[%emt 0:00:50]} 33. Qd4+ {[%emt 0:04:37]} Kh7 {[%emt 0:00:13]} 34. Kg2 {[%emt 0:02:50]} Qh4 {[%emt 0:01:29]} 35. Qf4 {[%emt 0:00:03]} Rf3 {[%emt 0:00:42]} 36. Qxd6 {[%emt 0:00:58]} Qf2+ {[%emt 0:00:58]} 37. Kh1 {[%emt 0:00:05]} Rxd3 {[%emt 0:01:08]} 0-1

[Event "Slovakia Open Piestany-A 2022"]
[Site "Piestany"]
[Date "2022.07.15"]
[Round "6.26"]
[White "Gyerpal, Adrian"]
[Black "Compel, Daniel"]
[Result "1/2-1/2"]
[ECO "B51"]
[WhiteElo "2193"]
[BlackElo "2098"]
[Annotator "ChessBase"]
[PlyCount "59"]
[EventDate "2022.07.12"]
[EventType "swiss"]
[EventCountry "SVK"]
[SourceTitle "playchess.com"]
[Source "ChessBase"]
[SourceQuality "1"]
[TimeControl "40/5400+30:1800+30"]

1. e4 {[%emt 0:00:41]} c5 {[%emt 0:00:04]} 2. Nf3 {[%emt 0:00:11]} d6 {[%emt 0:00:03]} 3. Bb5+ {[%emt 0:00:21]} Nd7 {[%emt 0:00:12]} 4. d4 {[%emt 0:00:46]} cxd4 {[%emt 0:00:05]} 5. Qxd4 {[%emt 0:00:09]} Ngf6 {[%emt 0:00:32]} 6. Nc3 {[%emt 0:08:27]} a6 {[%emt 0:00:14]} 7. Bxd7+ {[%emt 0:00:20]} Bxd7 {[%emt 0:00:07]} 8. Bg5 {[%emt 0:00:53]} e6 {[%emt 0:01:27]} 9. O-O-O {[%emt 0:03:47]} Be7 {[%emt 0:01:42]} 10. e5 {[%emt 0:01:56]} dxe5 {[%emt 0:00:40]} 11. Nxe5 {[%emt 0:00:44]} Bc6 {[%emt 0:04:14]} 12. Nxc6 {[%emt 0:06:15]} bxc6 {[%emt 0:00:10]} 13. Bxf6 {[%emt 0:00:34]} Bxf6 {[%emt 0:00:21]} 14. Qc5 {[%emt 0:02:56]} Qc7 {[%emt 0:01:06]} 15. Ne4 {[%emt 0:02:32]} Qf4+ {[%emt 0:02:54]} 16. Qe3 {[%emt 0:01:19]} Qxe3+ {[%emt 0:04:09]} 17. fxe3 {[%emt 0:00:02]} Be5 {[%emt 0:04:56]} 18. Nd6+ {[%emt 0:04:05]} Ke7 {[%emt 0:02:44]} 19. Nc4 {[%emt 0:00:57]} Bc7 {[%emt 0:00:57]} 20. Rd3 {[%emt 0:02:10]} Rhd8 {[%emt 0:00:30]} 21. h3 {[%emt 0:02:01]} Rd5 {[%emt 0:01:45]} 22. Rhd1 {[%emt 0:02:56]} Rad8 {[%emt 0:00:48]} 23. R1d2 {[%emt 0:04:00]} Rf5 {[%emt 0:04:58]} 24. Rxd8 {[%emt 0:04:12]} Bxd8 {[%emt 0:00:11]} 25. Kd1 {[%emt 0:01:17]} Rd5 {[%emt 0:00:37]} 26. Ke2 {[%emt 0:06:16]} Rxd2+ {[%emt 0:01:00]} 27. Kxd2 {[%emt 0:01:11]} Bc7 {[%emt 0:01:25]} 28. Kc3 {[%emt 0:03:37]} e5 {[%emt 0:02:13]} 29. a4 {[%emt 0:17:58]} f5 {[%emt 0:01:07]} 30. Kd3 {[%emt 0:03:36]} 1/2-1/2

[Event "Slovakia Open Piestany-A 2022"]
[Site "Piestany"]
[Date "2022.07.15"]
[Round "6.27"]
[White "Balint, Peter"]
[Black "Skreko, Igor"]
[Result "1/2-1/2"]
[ECO "B90"]
[WhiteElo "2051"]
[BlackElo "2193"]
[Annotator "ChessBase"]
[PlyCount "97"]
[EventDate "2022.07.12"]
[EventType "swiss"]
[EventCountry "SVK"]
[SourceTitle "playchess.com"]
[Source "ChessBase"]
[SourceQuality "1"]
[TimeControl "40/5400+30:1800+30"]

1. e4 {[%emt 0:00:02]} c5 {[%emt 0:00:07]} 2. Nf3 {[%emt 0:00:10]} d6 {[%emt 0:00:04]} 3. d4 {[%emt 0:00:04]} cxd4 {[%emt 0:00:02]} 4. Nxd4 {[%emt 0:00:04]} Nf6 {[%emt 0:00:13]} 5. Nc3 {[%emt 0:00:04]} a6 {[%emt 0:00:07]} 6. Qd3 {[%emt 0:00:27]} e5 {[%emt 0:01:23]} 7. Nf5 {[%emt 0:00:11]} Bxf5 {[%emt 0:03:29]} 8. exf5 {[%emt 0:00:07]} e4 {[%emt 0:08:12]} 9. Qg3 {[%emt 0:18:11]} Nbd7 {[%emt 0:24:49]} 10. Be2 {[%emt 0:11:36]} Qa5 {[%emt 0:01:45]} 11. O-O {[%emt 0:06:08]} Qxf5 {[%emt 0:07:54]} 12. f3 {[%emt 0:01:04]} Qc5+ {[%emt 0:00:20]} 13. Kh1 {[%emt 0:00:07]} d5 {[%emt 0:00:57]} 14. fxe4 {[%emt 0:00:52]} dxe4 {[%emt 0:00:11]} 15. Be3 {[%emt 0:01:42]} Qc6 {[%emt 0:01:25]} 16. Rf5 {[%emt 0:03:08]} g6 {[%emt 0:08:43]} 17. Rff1 {[%emt 0:09:21]} Bg7 {[%emt 0:01:02]} 18. Rad1 {[%emt 0:00:31]} O-O {[%emt 0:06:27]} 19. Rd6 {[%emt 0:01:14]} Qc8 {[%emt 0:00:53]} 20. Bg5 {[%emt 0:02:14]} Ne8 {[%emt 0:00:58]} 21. Nd5 {[%emt 0:01:05]} Kh8 {[%emt 0:02:30]} 22. Rxd7 {[%emt 0:01:55]} Qxd7 {[%emt 0:00:46]} 23. Nb6 {[%emt 0:00:04]} Qc6 {[%emt 0:06:31]} 24. Nxa8 {[%emt 0:01:00]} b5 {[%emt 0:01:48]} 25. Be7 {[%emt 0:03:47]} Rg8 {[%emt 0:01:07]} 26. Rxf7 {[%emt 0:11:27]} Qxa8 {[%emt 0:00:07]} 27. c4 {[%emt 0:00:13]} Qc6 {[%emt 0:02:55]} 28. cxb5 {[%emt 0:01:32]} axb5 {[%emt 0:01:47]} 29. Qf4 {[%emt 0:09:27]} Bxb2 {[%emt 0:04:30]} 30. h4 {[%emt 0:03:45]} Ng7 {[%emt 0:05:09]} 31. h5 {[%emt 0:02:07]} gxh5 {[%emt 0:00:43]} 32. Rf8 {[%emt 0:02:33]} Qc1+ {[%emt 0:05:05]} 33. Qxc1 {[%emt 0:00:19]} Bxc1 {[%emt 0:00:01]} 34. Rxg8+ {[%emt 0:01:27]} Kxg8 {[%emt 0:00:01]} 35. Bxb5 {[%emt 0:00:08]} Nf5 {[%emt 0:01:18]} 36. Bb4 {[%emt 0:01:52]} e3 {[%emt 0:02:22]} 37. Bd3 {[%emt 0:00:54]} Ng3+ {[%emt 0:02:39]} 38. Kh2 {[%emt 0:00:08]} h4 {[%emt 0:00:14]} 39. Be1 {[%emt 0:00:50]} Nh5 {[%emt 0:00:47]} 40. Kg1 {[%emt 0:01:44]} Nf4 {[%emt 0:00:35]} 41. Bc4+ {[%emt 0:30:18]} Kf8 {[%emt 0:30:29]} 42. Kf1 {[%emt 0:01:16]} h3 {[%emt 0:00:00]} 43. gxh3 {[%emt 0:00:00]} Nxh3 {[%emt 0:00:00]} 44. a4 {[%emt 0:00:00]} Ba3 {[%emt 0:00:00]} 45. a5 {[%emt 0:00:00]} Bc5 {[%emt 0:00:00]} 46. Bg3 {[%emt 0:00:00]} Ng5 {[%emt 0:00:00]} 47. Bd5 {[%emt 0:00:00]} Ba7 {[%emt 0:00:00]} 48. Bc7 {[%emt 0:00:00]} Ke7 {[%emt 0:00:00]} 49. Bb6 {[%emt 0:00:00]} 1/2-1/2

[Event "Slovakia Open Piestany-A 2022"]
[Site "Piestany"]
[Date "2022.07.15"]
[Round "6.28"]
[White "Drtina, Milan"]
[Black "Paluska, Karol"]
[Result "1-0"]
[ECO "B15"]
[WhiteElo "2167"]
[BlackElo "1957"]
[Annotator "ChessBase"]
[PlyCount "79"]
[EventDate "2022.07.12"]
[EventType "swiss"]
[EventCountry "SVK"]
[SourceTitle "playchess.com"]
[Source "ChessBase"]
[SourceQuality "1"]
[TimeControl "40/5400+30:1800+30"]

1. e4 {[%emt 0:00:12]} c6 {[%emt 0:00:09]} 2. d4 {[%emt 0:02:06]} d5 {[%emt 0:01:14]} 3. Nd2 {[%emt 0:03:44]} dxe4 {[%emt 0:00:09]} 4. Nxe4 {[%emt 0:00:17]} Nf6 {[%emt 0:00:06]} 5. Nxf6+ {[%emt 0:00:58]} exf6 {[%emt 0:00:06]} 6. Nf3 {[%emt 0:00:11]} Bd6 {[%emt 0:00:15]} 7. Bd3 {[%emt 0:00:56]} O-O {[%emt 0:01:14]} 8. O-O {[%emt 0:00:11]} Re8 {[%emt 0:01:03]} 9. h3 {[%emt 0:00:31]} Be6 {[%emt 0:03:17]} 10. c4 {[%emt 0:03:08]} Nd7 {[%emt 0:05:19]} 11. d5 {[%emt 0:01:01]} cxd5 {[%emt 0:00:50]} 12. cxd5 {[%emt 0:00:14]} Bxd5 {[%emt 0:00:27]} 13. Bxh7+ {[%emt 0:00:17]} Kxh7 {[%emt 0:00:05]} 14. Qxd5 {[%emt 0:00:13]} Ne5 {[%emt 0:11:58]} 15. Nxe5 {[%emt 0:01:38]} Bxe5 {[%emt 0:11:21]} 16. Qxb7 {[%emt 0:02:34]} Rb8 {[%emt 0:01:37]} 17. Qxa7 {[%emt 0:01:00]} Bd4 {[%emt 0:02:57]} 18. Qxf7 {[%emt 0:07:56]} Qa5 {[%emt 0:00:30]} 19. Bf4 {[%emt 0:04:28]} Rf8 {[%emt 0:00:29]} 20. Qc4 {[%emt 0:00:39]} Be5 {[%emt 0:02:04]} 21. Qe4+ {[%emt 0:00:38]} Kg8 {[%emt 0:01:27]} 22. Bxe5 {[%emt 0:00:15]} fxe5 {[%emt 0:00:03]} 23. b3 {[%emt 0:00:24]} Rf4 {[%emt 0:00:19]} 24. Qe3 {[%emt 0:00:13]} Rbf8 {[%emt 0:00:27]} 25. a3 {[%emt 0:00:16]} e4 {[%emt 0:04:19]} 26. b4 {[%emt 0:00:43]} Qf5 {[%emt 0:01:50]} 27. Rae1 {[%emt 0:05:14]} Rf6 {[%emt 0:00:47]} 28. a4 {[%emt 0:06:15]} Rg6 {[%emt 0:11:05]} 29. Kh2 {[%emt 0:00:16]} Rh6 {[%emt 0:05:55]} 30. f3 {[%emt 0:02:05]} Qe5 {[%emt 0:05:56]} 31. Kg1 {[%emt 0:00:24]} g5 {[%emt 0:00:04]} 32. fxe4 {[%emt 0:00:28]} Rhf6 {[%emt 0:00:38]} 33. Rxf4 {[%emt 0:00:27]} gxf4 {[%emt 0:00:04]} 34. Qc5 {[%emt 0:00:42]} Qb2 {[%emt 0:00:46]} 35. e5 {[%emt 0:00:16]} Rg6 {[%emt 0:00:30]} 36. Qd5+ {[%emt 0:01:48]} Kh7 {[%emt 0:01:07]} 37. Qe4 {[%emt 0:00:22]} Qd2 {[%emt 0:00:23]} 38. Re2 {[%emt 0:00:48]} Qc1+ {[%emt 0:04:10]} 39. Kh2 {[%emt 0:00:18]} f3 {[%emt 0:01:14]} 40. Qxf3 {[%emt 0:00:18]} 1-0

[Event "Slovakia Open Piestany-A 2022"]
[Site "Piestany"]
[Date "2022.07.15"]
[Round "6.29"]
[White "Pennica, Andrea"]
[Black "Soham Datar"]
[Result "0-1"]
[ECO "B20"]
[WhiteElo "1986"]
[BlackElo "2111"]
[Annotator "ChessBase"]
[PlyCount "40"]
[EventDate "2022.07.12"]
[EventType "swiss"]
[EventCountry "SVK"]
[SourceTitle "playchess.com"]
[Source "ChessBase"]
[SourceQuality "1"]
[TimeControl "40/5400+30:1800+30"]

1. e4 {[%emt 0:02:19]} c5 {[%emt 0:00:05]} 2. a3 {[%emt 0:00:03]} e6 {[%emt 0:00:30]} 3. b4 {[%emt 0:00:14]} d5 {[%emt 0:04:36]} 4. e5 {[%emt 0:00:37]} Nc6 {[%emt 0:01:28]} 5. Nf3 {[%emt 0:00:08]} d4 {[%emt 0:01:30]} 6. bxc5 {[%emt 0:06:30]} Bxc5 {[%emt 0:00:19]} 7. Bd3 {[%emt 0:05:11]} Qc7 {[%emt 0:06:18]} 8. O-O {[%emt 0:01:25]} Nge7 {[%emt 0:01:58]} 9. Bb2 {[%emt 0:09:57]} Ng6 {[%emt 0:01:02]} 10. Re1 {[%emt 0:03:54]} Ngxe5 {[%emt 0:02:20]} 11. Nxe5 {[%emt 0:00:08]} Nxe5 {[%emt 0:00:05]} 12. Bb5+ {[%emt 0:00:09]} Bd7 {[%emt 0:12:37]} 13. Bxd7+ {[%emt 0:02:43]} Nxd7 {[%emt 0:00:14]} 14. Qg4 {[%emt 0:06:40]} Qb6 {[%emt 0:00:05]} 15. Qxg7 {[%emt 0:02:18]} O-O-O {[%emt 0:00:34]} 16. Ra2 {[%emt 0:00:11]} e5 {[%emt 0:08:24]} 17. d3 {[%emt 0:04:28]} Qe6 {[%emt 0:00:15]} 18. Nd2 {[%emt 0:08:10]} Rdg8 {[%emt 0:01:08]} 19. Qxh8 {[%emt 0:00:07]} Rxh8 {[%emt 0:00:04]} 20. Raa1 {[%emt 0:00:29]} Qd5 {[%emt 0:00:29]} 0-1

[Event "Slovakia Open Piestany-A 2022"]
[Site "Piestany"]
[Date "2022.07.15"]
[Round "6.30"]
[White "Sosovickova, Jana"]
[Black "Chlpik, Martin"]
[Result "0-1"]
[ECO "B90"]
[WhiteElo "1958"]
[BlackElo "2236"]
[Annotator "ChessBase"]
[PlyCount "80"]
[EventDate "2022.07.12"]
[EventType "swiss"]
[EventCountry "SVK"]
[SourceTitle "playchess.com"]
[Source "ChessBase"]
[SourceQuality "1"]
[TimeControl "40/5400+30:1800+30"]

1. e4 {[%emt 0:00:03]} c5 {[%emt 0:05:41]} 2. Nf3 {[%emt 0:00:04]} d6 {[%emt 0:00:03]} 3. d4 {[%emt 0:00:04]} cxd4 {[%emt 0:00:02]} 4. Nxd4 {[%emt 0:00:05]} Nf6 {[%emt 0:00:05]} 5. Nc3 {[%emt 0:00:05]} a6 {[%emt 0:00:01]} 6. Bd3 {[%emt 0:00:11]} g6 {[%emt 0:00:06]} 7. O-O {[%emt 0:00:11]} Bg7 {[%emt 0:00:05]} 8. a4 {[%emt 0:00:14]} O-O {[%emt 0:00:35]} 9. Kh1 {[%emt 0:00:24]} Nc6 {[%emt 0:01:18]} 10. Nxc6 {[%emt 0:00:53]} bxc6 {[%emt 0:00:09]} 11. f4 {[%emt 0:00:20]} Nd7 {[%emt 0:05:36]} 12. Ra3 {[%emt 0:05:51]} Rb8 {[%emt 0:01:54]} 13. Qe2 {[%emt 0:02:32]} Nc5 {[%emt 0:00:33]} 14. Nd1 {[%emt 0:04:10]} Rb4 {[%emt 0:07:55]} 15. c3 {[%emt 0:06:15]} Rb3 {[%emt 0:02:32]} 16. Ra2 {[%emt 0:02:58]} a5 {[%emt 0:19:46]} 17. Be3 {[%emt 0:08:59]} Nxd3 {[%emt 0:01:32]} 18. Qxd3 {[%emt 0:00:07]} c5 {[%emt 0:00:04]} 19. Qc2 {[%emt 0:03:02]} Qb6 {[%emt 0:01:53]} 20. Nf2 {[%emt 0:02:42]} Ba6 {[%emt 0:04:49]} 21. Rfa1 {[%emt 0:05:12]} Bc4 {[%emt 0:09:41]} 22. g4 {[%emt 0:04:09]} Rb8 {[%emt 0:02:24]} 23. Bc1 {[%emt 0:00:56]} f5 {[%emt 0:00:09]} 24. exf5 {[%emt 0:02:58]} gxf5 {[%emt 0:10:30]} 25. Qxf5 {[%emt 0:02:10]} e6 {[%emt 0:00:55]} 26. Qc2 {[%emt 0:08:03]} Bd5+ {[%emt 0:00:11]} 27. Kg1 {[%emt 0:00:06]} Ba8 {[%emt 0:00:18]} 28. Qd3 {[%emt 0:02:01]} Qc6 {[%emt 0:00:12]} 29. Qh3 {[%emt 0:00:04]} Bd4 {[%emt 0:00:19]} 30. Kf1 {[%emt 0:01:11]} Bxf2 {[%emt 0:07:17]} 31. Kxf2 {[%emt 0:00:10]} Qe4 {[%emt 0:00:10]} 32. g5 {[%emt 0:02:20]} Qc2+ {[%emt 0:04:56]} 33. Kg3 {[%emt 0:06:46]} Bd5 {[%emt 0:00:39]} 34. Be3 {[%emt 0:04:07]} Rxb2 {[%emt 0:05:20]} 35. Rxb2 {[%emt 0:01:43]} Rxb2 {[%emt 0:00:35]} 36. Rg1 {[%emt 0:02:37]} Qxc3 {[%emt 0:03:08]} 37. Kh4 {[%emt 0:00:25]} Re2 {[%emt 0:00:20]} 38. Rg3 {[%emt 0:00:37]} Qc2 {[%emt 0:00:22]} 39. Bg1 {[%emt 0:00:17]} Qxa4 {[%emt 0:02:34]} 40. Qg4 {[%emt 0:03:03]} Qe4 {[%emt 0:02:09]} 0-1

[Event "Slovakia Open Piestany-A 2022"]
[Site "Piestany"]
[Date "2022.07.15"]
[Round "6.31"]
[White "Zdrazil, Patrik"]
[Black "Sevcikova, Lucia"]
[Result "1/2-1/2"]
[ECO "A08"]
[WhiteElo "2103"]
[BlackElo "2036"]
[Annotator "ChessBase"]
[PlyCount "26"]
[EventDate "2022.07.12"]
[EventType "swiss"]
[EventCountry "SVK"]
[SourceTitle "playchess.com"]
[Source "ChessBase"]
[SourceQuality "1"]
[TimeControl "40/5400+30:1800+30"]

1. Nf3 {[%emt 0:00:07]} d5 {[%emt 0:04:34]} 2. g3 {[%emt 0:00:06]} c5 {[%emt 0:00:19]} 3. Bg2 {[%emt 0:00:05]} Nc6 {[%emt 0:00:21]} 4. O-O {[%emt 0:00:07]} e5 {[%emt 0:00:43]} 5. d3 {[%emt 0:00:05]} Nf6 {[%emt 0:00:16]} 6. e4 {[%emt 0:01:53]} d4 {[%emt 0:01:07]} 7. a4 {[%emt 0:00:23]} h6 {[%emt 0:03:14]} 8. Na3 {[%emt 0:01:37]} Be6 {[%emt 0:03:14]} 9. Nc4 {[%emt 0:14:24]} Qc7 {[%emt 0:14:30]} 10. Nh4 {[%emt 0:17:47]} Bxc4 {[%emt 0:08:31]} 11. dxc4 {[%emt 0:00:04]} O-O-O {[%emt 0:00:10]} 12. Bd2 {[%emt 0:05:36]} g6 {[%emt 0:07:34]} 13. Qe2 {[%emt 0:09:43]} Be7 {[%emt 0:05:04]} 1/2-1/2

[Event "Slovakia Open Piestany-A 2022"]
[Site "Piestany"]
[Date "2022.07.16"]
[Round "7.1"]
[White "Schitco, Ivan"]
[Black "Omelja, Artem"]
[Result "1-0"]
[ECO "A17"]
[WhiteElo "2490"]
[BlackElo "2478"]
[Annotator "ChessBase"]
[PlyCount "133"]
[EventDate "2022.07.12"]
[EventType "swiss"]
[EventCountry "SVK"]
[SourceTitle "playchess.com"]
[Source "ChessBase"]
[SourceQuality "1"]
[TimeControl "40/5400+30:1800+30"]

1. c4 {[%emt 0:00:06]} e6 {[%emt 0:00:52]} 2. Nc3 {[%emt 0:00:33]} d5 {[%emt 0:00:16]} 3. e3 {[%emt 0:00:21]} Nf6 {[%emt 0:01:03]} 4. Nf3 {[%emt 0:00:24]} dxc4 {[%emt 0:00:31]} 5. Bxc4 {[%emt 0:00:40]} a6 {[%emt 0:00:10]} 6. O-O {[%emt 0:01:51]} c5 {[%emt 0:01:41]} 7. b3 {[%emt 0:03:19]} Nc6 {[%emt 0:02:12]} 8. Bb2 {[%emt 0:00:20]} Be7 {[%emt 0:00:28]} 9. Qc2 {[%emt 0:07:16]} O-O {[%emt 0:12:56]} 10. Rad1 {[%emt 0:02:01]} Bd7 {[%emt 0:12:30]} 11. Qb1 {[%emt 0:05:10]} Qc7 {[%emt 0:04:21]} 12. Bd3 {[%emt 0:08:22]} Rad8 {[%emt 0:06:19]} 13. Qa1 {[%emt 0:09:50]} Bc8 {[%emt 0:02:27]} 14. Bb1 {[%emt 0:01:01]} Ne8 {[%emt 0:10:26]} 15. Ne4 {[%emt 0:04:20]} f5 {[%emt 0:01:02]} 16. Ng3 {[%emt 0:01:41]} Bd6 {[%emt 0:04:45]} 17. e4 {[%emt 0:19:15]} g6 {[%emt 0:05:16]} 18. d4 {[%emt 0:06:19]} cxd4 {[%emt 0:04:50]} 19. exf5 {[%emt 0:02:10]} exf5 {[%emt 0:01:19]} 20. Bd3 {[%emt 0:02:06]} Be7 {[%emt 0:00:36]} 21. Bc4+ {[%emt 0:01:43]} Kg7 {[%emt 0:00:56]} 22. Ne2 {[%emt 0:05:24]} Bf6 {[%emt 0:00:20]} 23. Nexd4 {[%emt 0:00:28]} Nxd4 {[%emt 0:01:49]} 24. Nxd4 {[%emt 0:00:14]} Kh8 {[%emt 0:07:12]} 25. Nf3 {[%emt 0:04:01]} b5 {[%emt 0:01:56]} 26. Bd5 {[%emt 0:01:13]} Bxb2 {[%emt 0:00:52]} 27. Qxb2+ {[%emt 0:00:03]} Nf6 {[%emt 0:00:38]} 28. Ne5 {[%emt 0:04:22]} Kg7 {[%emt 0:00:21]} 29. Rc1 {[%emt 0:01:02]} Qd6 {[%emt 0:01:33]} 30. Ba8 {[%emt 0:04:41]} Rfe8 {[%emt 0:06:41]} 31. f4 {[%emt 0:00:53]} Bb7 {[%emt 0:02:22]} 32. Bxb7 {[%emt 0:00:04]} Qb6+ {[%emt 0:00:05]} 33. Kh1 {[%emt 0:02:58]} Qxb7 {[%emt 0:00:01]} 34. h3 {[%emt 0:00:45]} Kg8 {[%emt 0:02:39]} 35. Nxg6 {[%emt 0:00:58]} Re6 {[%emt 0:01:01]} 36. Rfe1 {[%emt 0:01:02]} Red6 {[%emt 0:02:19]} 37. Ne7+ {[%emt 0:00:52]} Kf7 {[%emt 0:00:08]} 38. Qe5 {[%emt 0:00:54]} Qd7 {[%emt 0:01:53]} 39. Nxf5 {[%emt 0:00:11]} Rd5 {[%emt 0:00:32]} 40. Qe7+ {[%emt 0:00:40]} Qxe7 {[%emt 0:00:17]} 41. Nxe7 {[%emt 0:01:55]} Rd2 {[%emt 0:00:59]} 42. Nc6 {[%emt 0:01:41]} Re8 {[%emt 0:00:59]} 43. Ne5+ {[%emt 0:00:53]} Kg8 {[%emt 0:00:24]} 44. Re3 {[%emt 0:06:52]} Rxa2 {[%emt 0:02:45]} 45. Rg3+ {[%emt 0:01:53]} Kf8 {[%emt 0:00:07]} 46. Rc7 {[%emt 0:03:46]} Re7 {[%emt 0:00:16]} 47. Rc6 {[%emt 0:01:00]} Ne8 {[%emt 0:03:36]} 48. Rg5 {[%emt 0:04:28]} a5 {[%emt 0:05:23]} 49. Rf5+ {[%emt 0:02:38]} Kg7 {[%emt 0:00:16]} 50. Rc3 {[%emt 0:00:51]} Kg8 {[%emt 0:01:24]} 51. Rg5+ {[%emt 0:00:46]} Kf8 {[%emt 0:00:20]} 52. Rf5+ {[%emt 0:00:25]} Kg8 {[%emt 0:00:08]} 53. Ng4 {[%emt 0:00:42]} Re6 {[%emt 0:01:04]} 54. Rc8 {[%emt 0:01:43]} Kg7 {[%emt 0:02:40]} 55. Rxb5 {[%emt 0:00:17]} Re1+ {[%emt 0:01:06]} 56. Kh2 {[%emt 0:00:04]} Ree2 {[%emt 0:00:07]} 57. Rg5+ {[%emt 0:00:48]} Kf7 {[%emt 0:00:08]} 58. Ne5+ {[%emt 0:01:16]} Ke7 {[%emt 0:00:07]} 59. Ra8 {[%emt 0:00:36]} Rf2 {[%emt 0:04:28]} 60. Nc4 {[%emt 0:02:07]} a4 {[%emt 0:01:22]} 61. Ne3 {[%emt 0:02:30]} Nd6 {[%emt 0:03:49]} 62. bxa4 {[%emt 0:00:35]} Rae2 {[%emt 0:00:29]} 63. Ra7+ {[%emt 0:00:50]} Kf8 {[%emt 0:01:38]} 64. Rd5 {[%emt 0:00:24]} Ne8 {[%emt 0:00:46]} 65. Rf5+ {[%emt 0:00:31]} Kg8 {[%emt 0:00:08]} 66. Re5 {[%emt 0:00:41]} Nf6 {[%emt 0:00:29]} 67. Rg5+ {[%emt 0:00:17]} 1-0

[Event "Slovakia Open Piestany-A 2022"]
[Site "Piestany"]
[Date "2022.07.16"]
[Round "7.2"]
[White "Donchenko, Alexander"]
[Black "Neugebauer, Martin"]
[Result "1-0"]
[ECO "A35"]
[WhiteElo "2640"]
[BlackElo "2528"]
[Annotator "ChessBase"]
[PlyCount "49"]
[EventDate "2022.07.12"]
[EventType "swiss"]
[EventCountry "SVK"]
[SourceTitle "playchess.com"]
[Source "ChessBase"]
[SourceQuality "1"]
[TimeControl "40/5400+30:1800+30"]

1. c4 {[%emt 0:00:02]} c5 {[%emt 0:09:27]} 2. Nf3 {[%emt 0:00:35]} Nc6 {[%emt 0:00:28]} 3. Nc3 {[%emt 0:00:48]} g6 {[%emt 0:01:57]} 4. e3 {[%emt 0:01:04]} Nf6 {[%emt 0:10:06]} 5. d4 {[%emt 0:00:22]} cxd4 {[%emt 0:01:21]} 6. exd4 {[%emt 0:00:07]} d5 {[%emt 0:00:14]} 7. cxd5 {[%emt 0:00:12]} Nxd5 {[%emt 0:00:08]} 8. Qb3 {[%emt 0:00:13]} Nxc3 {[%emt 0:00:52]} 9. Bc4 {[%emt 0:00:17]} e6 {[%emt 0:00:35]} 10. bxc3 {[%emt 0:00:10]} Na5 {[%emt 0:03:56]} 11. Bb5+ {[%emt 0:07:51]} Bd7 {[%emt 0:00:08]} 12. Qa4 {[%emt 0:04:20]} Nc6 {[%emt 0:00:20]} 13. d5 {[%emt 0:10:49]} exd5 {[%emt 0:03:18]} 14. O-O {[%emt 0:01:07]} Be7 {[%emt 0:06:09]} 15. Bh6 {[%emt 0:06:15]} a6 {[%emt 0:21:40]} 16. Bxc6 {[%emt 0:02:30]} bxc6 {[%emt 0:02:33]} 17. Rfe1 {[%emt 0:05:15]} c5 {[%emt 0:01:20]} 18. Qf4 {[%emt 0:02:54]} Be6 {[%emt 0:01:52]} 19. Ne5 {[%emt 0:08:37]} Qc7 {[%emt 0:11:31]} 20. Qa4+ {[%emt 0:01:12]} Kd8 {[%emt 0:00:33]} 21. Nc6+ {[%emt 0:11:20]} Ke8 {[%emt 0:01:19]} 22. Rxe6 {[%emt 0:01:55]} fxe6 {[%emt 0:00:26]} 23. Ne5+ {[%emt 0:00:02]} Kd8 {[%emt 0:00:11]} 24. Nf7+ {[%emt 0:00:02]} Kc8 {[%emt 0:00:07]} 25. Nxh8 {[%emt 0:00:03]} 1-0